fUST/lending_fUST_20250504
["ID","MTS","AMOUNT","RATE_DAILY","PERIOD"]
[359757424,1746304232337,-400.0,0.00018469,2]
[359757426,1746304232347,-31816.43030682,0.00018469,2]
[359757429,1746304232359,-5447.40008219,0.00018469,2]
[359757432,1746304232379,-3462.65041324,0.00018469,2]
[359757433,1746304232389,-500.0,0.0001847,2]
[359757435,1746304232398,-158.67572112,0.0001847,2]
[359757459,1746304238333,-400.0,0.00018469,2]
[359757460,1746304238344,-341.32427888,0.0001847,2]
[359757461,1746304238353,-500.0,0.0001847,2]
[359757462,1746304238362,-500.0,0.0001847,2]
[359757463,1746304238375,-500.0,0.0001847,2]
[359757464,1746304238384,-500.0,0.0001847,2]
[359757465,1746304238398,-500.0,0.0001847,2]
[359757466,1746304238407,-500.0,0.0001847,2]
[359757467,1746304238418,-500.0,0.0001847,2]
[359757468,1746304238426,-500.0,0.0001847,2]
[359757469,1746304238436,-500.0,0.0001847,2]
[359757470,1746304238446,-500.0,0.0001847,2]
[359757471,1746304238456,-500.0,0.0001847,2]
[359757472,1746304238466,-500.0,0.0001847,2]
[359757473,1746304238476,-500.0,0.0001847,2]
[359757474,1746304238485,-500.0,0.0001847,2]
[359757475,1746304238495,-500.0,0.0001847,2]
[359757477,1746304238504,-500.0,0.0001847,2]
[359757479,1746304238513,-500.0,0.0001847,2]
[359757481,1746304238523,-287.86663479,0.0001847,2]
[359757483,1746304238532,-500.0,0.0001847,2]
[359757484,1746304238543,-500.0,0.0001847,2]
[359757485,1746304238552,-500.0,0.0001847,2]
[359757486,1746304238562,-500.0,0.0001847,2]
[359757487,1746304238571,-500.0,0.0001847,2]
[359757488,1746304238580,-500.0,0.0001847,2]
[359757489,1746304238590,-500.0,0.0001847,2]
[359757490,1746304238600,-500.0,0.0001847,2]
[359757491,1746304238609,-500.0,0.0001847,2]
[359757492,1746304238619,-500.0,0.0001847,2]
[359757493,1746304238628,-500.0,0.0001847,2]
[359757494,1746304238639,-500.0,0.0001847,2]
[359757495,1746304238648,-500.0,0.0001847,2]
[359757496,1746304238658,-500.0,0.0001847,2]
[359757497,1746304238667,-500.0,0.0001847,2]
[359757498,1746304238677,-500.0,0.0001847,2]
[359757499,1746304238686,-500.0,0.0001847,2]
[359757500,1746304238696,-500.0,0.0001847,2]
[359757501,1746304238705,-200.0,0.0001847,2]
[359757502,1746304238714,-500.0,0.0001847,2]
[359757503,1746304238724,-500.0,0.0001847,2]
[359757504,1746304238888,-500.0,0.0001847,2]
[359757505,1746304238898,-500.0,0.0001847,2]
[359757506,1746304238908,-500.0,0.0001847,2]
[359757507,1746304238918,-400.0,0.0001847,2]
[359757508,1746304238927,-400.0,0.0001847,2]
[359757509,1746304238937,-453.48,0.0001847,2]
[359757510,1746304238946,-400.0,0.0001847,2]
[359757511,1746304238956,-400.0,0.0001847,2]
[359757512,1746304238966,-173.37879049,0.00018471,2]
[359757513,1746304238978,-400.0,0.00018471,2]
[359757514,1746304238987,-400.0,0.00018471,2]
[359757515,1746304238997,-400.0,0.00018471,2]
[359757516,1746304239006,-400.0,0.00018471,2]
[359757517,1746304239018,-500.0,0.00018473,2]
[359757518,1746304239027,-500.0,0.00018473,2]
[359757519,1746304239038,-500.0,0.00018473,2]
[359757520,1746304239047,-507.78518072,0.00018473,2]
[359757521,1746304239057,-500.0,0.00018473,2]
[359757522,1746304239067,-500.0,0.00018473,2]
[359757523,1746304239077,-500.0,0.00018473,2]
[359757524,1746304239088,-500.0,0.00018473,2]
[359757525,1746304239098,-500.0,0.00018473,2]
[359757526,1746304239108,-500.0,0.00018473,2]
[359757527,1746304239118,-500.0,0.00018473,2]
[359757528,1746304239128,-500.0,0.00018473,2]
[359757529,1746304239138,-400.0,0.00018487,2]
[359757530,1746304239148,-400.0,0.00018742,2]
[359757531,1746304239159,-400.0,0.00018742,2]
[359757532,1746304239168,-400.0,0.00018742,2]
[359757533,1746304239178,-400.0,0.00018742,2]
[359757534,1746304239187,-400.0,0.00018743,2]
[359757535,1746304239199,-400.0,0.00018743,2]
[359757536,1746304239209,-400.0,0.00018743,2]
[359757537,1746304239218,-400.0,0.00018743,2]
[359757538,1746304239228,-400.0,0.00018743,2]
[359757539,1746304239238,-400.0,0.00018743,2]
[359757540,1746304239249,-423.67392186,0.00018744,2]
[359757541,1746304239258,-400.0,0.00018744,2]
[359757542,1746304239268,-400.0,0.00018744,2]
[359757543,1746304239277,-400.0,0.00018745,2]
[359757544,1746304239287,-481.36,0.00018745,2]
[359757545,1746304239296,-400.0,0.00018761,2]
[359757546,1746304239306,-723.40879488,0.000189,2]
[359757547,1746304239320,-400.0,0.00019016,2]
[359757548,1746304239330,-400.0,0.00019016,2]
[359757549,1746304239340,-400.0,0.00019016,2]
[359757550,1746304239350,-400.0,0.00019016,2]
[359757551,1746304239360,-151.10316959,0.00019017,2]
[359757610,1746304240636,-248.89683041,0.00019017,2]
[359757612,1746304240646,-400.0,0.00019017,2]
[359757614,1746304240656,-400.0,0.00019017,2]
[359757616,1746304240665,-400.0,0.00019017,2]
[359757618,1746304240674,-400.0,0.00019017,2]
[359757620,1746304240684,-400.0,0.00019017,2]
[359757623,1746304240693,-400.0,0.00019018,2]
[359757625,1746304240702,-400.0,0.00019018,2]
[359757626,1746304240711,-373.80396629,0.00019019,2]
[359757913,1746304243410,-26.19603371,0.00019019,2]
[359757915,1746304243420,-500.0,0.00019027,2]
[359757917,1746304243430,-400.0,0.00019035,2]
[359757919,1746304243439,-151.0,0.00019178,2]
[359757921,1746304243448,-157.6207,0.00019178,2]
[359757923,1746304243457,-300.0,0.00019178,2]
[359757925,1746304243467,-188.42,0.0001925,3]
[359757927,1746304243475,-565.27,0.0001925,3]
[359757929,1746304243485,-258.38808996,0.00019271,2]
[359757933,1746304243494,-220.40294868,0.00019271,2]
[359757936,1746304243503,-151.0,0.00019271,2]
[359757938,1746304243513,-225.45316858,0.00019272,2]
[359757940,1746304243522,-500.0,0.00019272,2]
[359757943,1746304243531,-240.78465021,0.00019272,2]
[359757946,1746304243541,-500.0,0.00019272,2]
[359757949,1746304243553,-500.0,0.00019273,2]
[359757951,1746304243563,-500.0,0.00019273,2]
[359757953,1746304243572,-400.0,0.0001929,2]
[359757955,1746304243581,-400.0,0.0001929,2]
[359757957,1746304243591,-400.0,0.00019291,2]
[359757959,1746304243600,-400.0,0.00019291,2]
[359757961,1746304243609,-400.0,0.00019291,2]
[359757963,1746304243618,-400.0,0.00019291,2]
[359757965,1746304243628,-400.0,0.00019291,2]
[359757967,1746304243638,-400.0,0.00019291,2]
[359757969,1746304243648,-400.0,0.00019292,2]
[359757970,1746304243658,-400.0,0.00019292,2]
[359757971,1746304243667,-400.0,0.00019293,2]
[359757972,1746304243677,-400.0,0.00019309,2]
[359757973,1746304243687,-151.0,0.00019452,2]
[359757974,1746304243697,-151.0,0.00019545,2]
[359757975,1746304243706,-400.0,0.00019564,2]
[359757976,1746304243715,-404.12,0.00019564,2]
[359757977,1746304243725,-400.0,0.00019565,2]
[359757978,1746304243734,-400.0,0.00019565,2]
[359757979,1746304243743,-400.0,0.00019565,2]
[359757980,1746304243753,-400.0,0.00019565,2]
[359757981,1746304243763,-400.0,0.00019565,2]
[359757982,1746304243771,-400.0,0.00019565,2]
[359757983,1746304243780,-400.0,0.00019566,2]
[359757984,1746304243789,-400.0,0.00019566,2]
[359757985,1746304243798,-212.81,0.00019567,2]
[359757986,1746304243808,-400.0,0.00019583,2]
[359757987,1746304243817,-198.0,0.00019726,2]
[359757988,1746304243826,-198.0,0.00019819,2]
[359757989,1746304243835,-400.0,0.00019838,2]
[359757990,1746304243844,-400.0,0.00019839,2]
[359757992,1746304243854,-352.1,0.00019839,2]
[359757994,1746304243864,-400.0,0.00019839,2]
[359757996,1746304243874,-400.0,0.00019839,2]
[359757998,1746304243883,-400.0,0.00019839,2]
[359758000,1746304243893,-400.0,0.0001984,2]
[359758002,1746304243902,-460.84,0.0001984,2]
[359758004,1746304243912,-775.91356961,0.000199,2]
[359758006,1746304243922,-1066.91450802,0.00019978,2]
[359758008,1746304243931,-151.3789105,0.0002,2]
[359758010,1746304243941,-160.0,0.00020061,2]
[359758012,1746304243950,-160.0,0.00020061,2]
[359758014,1746304243960,-841.47485993,0.00020061,2]
[359758016,1746304243970,-421.66712248,0.00020061,2]
[359758018,1746304243979,-6465.11063324,0.00020061,2]
[359758370,1746304378028,464.2868138,0.00017681,2]
[359758396,1746305355742,331.992834,0.00017461,2]
[359758414,1746305432433,-210.24684974,0.00018263,2]
[359758415,1746305432442,-250.0,0.0001827,2]
[359758416,1746305432452,-1000.0,0.0001827,2]
[359758417,1746305432461,-1395.70293838,0.00018362,2]
[359758418,1746305432470,-1603.33311558,0.00018363,2]
[359758419,1746305432479,-151.0,0.00018454,2]
[359758420,1746305432489,-376.84,0.00018457,3]
[359758421,1746305432498,-1200.0,0.00018461,2]
[359758422,1746305432507,-300.0,0.00018461,2]
[359758423,1746305432516,-27704.81794828,0.00018462,2]
[359758424,1746305432527,-1600.0,0.00018462,2]
[359758425,1746305432539,-2264.2868138,0.00018462,2]
[359758427,1746305432557,-3971.77698862,0.00018462,2]
[359758428,1746305432566,-500.0,0.00018462,2]
[359758429,1746305432575,-223.6921585,0.00018462,2]
[359758430,1746305432585,-500.0,0.00018462,2]
[359758431,1746305432594,-159.0455473,0.00018462,2]
[359758432,1746305432604,-500.0,0.00018462,2]
[359758433,1746305432613,-195.47423358,0.00018462,2]
[359758435,1746305432623,-1847.68275702,0.00018462,2]
[359758437,1746305432632,-1847.68275702,0.00018462,2]
[359758439,1746305432641,-1847.68275702,0.00018462,2]
[359758441,1746305432650,-263.77477913,0.00018462,2]
[359758443,1746305432659,-1847.68275702,0.00018462,2]
[359758445,1746305432669,-398.67607525,0.00018462,2]
[359758448,1746305432680,-1847.68275702,0.00018462,2]
[359758450,1746305432690,-1847.68275702,0.00018462,2]
[359758451,1746305432700,-1847.68275702,0.00018462,2]
[359758452,1746305432709,-1847.68275702,0.00018462,2]
[359758453,1746305432718,-1847.68275702,0.00018462,2]
[359758454,1746305432728,-1847.68275702,0.00018462,2]
[359758455,1746305432737,-1847.68275702,0.00018462,2]
[359758456,1746305432747,-1847.68275702,0.00018462,2]
[359758457,1746305432757,-1847.68275702,0.00018462,2]
[359758458,1746305432767,-1847.68275702,0.00018462,2]
[359758459,1746305432776,-1847.68275702,0.00018462,2]
[359758460,1746305432785,-1847.68275702,0.00018462,2]
[359758461,1746305432796,-1847.68275702,0.00018462,2]
[359758462,1746305432805,-1847.68275702,0.00018462,2]
[359758463,1746305432814,-1847.68275702,0.00018462,2]
[359758464,1746305432824,-1847.68275702,0.00018462,2]
[359758465,1746305432834,-1847.68275702,0.00018462,2]
[359758466,1746305432843,-1847.68275702,0.00018462,2]
[359758467,1746305432852,-1847.68275702,0.00018462,2]
[359758468,1746305432862,-1847.68275702,0.00018462,2]
[359758473,1746305433010,-1847.68275702,0.00018462,2]
[359758474,1746305433029,-1847.68275702,0.00018462,2]
[359758475,1746305433039,-1847.68275702,0.00018462,2]
[359758476,1746305433048,-1847.68275702,0.00018462,2]
[359758478,1746305433058,-1847.68275702,0.00018462,2]
[359758480,1746305433067,-1847.68275702,0.00018462,2]
[359758482,1746305433077,-1847.68275702,0.00018462,2]
[359758484,1746305433086,-1847.68275702,0.00018462,2]
[359758486,1746305433096,-1847.68275702,0.00018462,2]
[359758487,1746305433109,-1847.68275702,0.00018462,2]
[359758488,1746305433119,-1847.68275702,0.00018462,2]
[359758489,1746305433128,-1847.68275702,0.00018462,2]
[359758490,1746305433138,-1847.68275702,0.00018462,2]
[359758491,1746305433148,-1847.68275702,0.00018462,2]
[359758492,1746305433158,-1847.68275702,0.00018462,2]
[359758493,1746305433168,-1847.68275702,0.00018462,2]
[359758494,1746305433178,-1847.68275702,0.00018462,2]
[359758496,1746305433187,-1847.68275702,0.00018462,2]
[359758498,1746305433197,-1847.68275702,0.00018462,2]
[359758499,1746305433207,-1847.68275702,0.00018462,2]
[359758500,1746305433216,-1847.68275702,0.00018462,2]
[359758501,1746305433226,-1847.68275702,0.00018462,2]
[359758502,1746305433235,-1847.68275702,0.00018462,2]
[359758503,1746305433244,-1847.68275702,0.00018462,2]
[359758504,1746305433254,-1847.68275702,0.00018462,2]
[359758505,1746305433263,-1847.68275702,0.00018462,2]
[359758506,1746305433272,-1847.68275702,0.00018462,2]
[359758507,1746305433282,-1847.68275702,0.00018462,2]
[359758508,1746305433291,-1847.68275702,0.00018462,2]
[359758509,1746305433301,-1847.68275702,0.00018462,2]
[359758510,1746305433310,-1847.68275702,0.00018462,2]
[359758511,1746305433320,-1847.68275702,0.00018462,2]
[359758512,1746305433330,-1847.68275702,0.00018462,2]
[359758513,1746305433340,-1847.68275702,0.00018462,2]
[359758514,1746305433350,-400.0,0.00018462,2]
[359758515,1746305433359,-1847.68275702,0.00018462,2]
[359758516,1746305433369,-400.0,0.00018462,2]
[359758517,1746305433379,-1818.81271393,0.00018462,2]
[359758518,1746305433389,-1818.81271393,0.00018462,2]
[359758519,1746305433399,-1818.81271393,0.00018462,2]
[359758520,1746305433408,-1818.81271393,0.00018462,2]
[359758521,1746305433418,-1818.81271393,0.00018462,2]
[359758522,1746305433427,-1818.81271393,0.00018462,2]
[359758523,1746305433437,-1818.81271393,0.00018462,2]
[359758524,1746305433447,-1818.81271393,0.00018462,2]
[359758525,1746305433456,-1818.81271393,0.00018462,2]
[359758526,1746305433466,-1818.81271393,0.00018462,2]
[359758527,1746305433475,-1818.81271393,0.00018462,2]
[359758528,1746305433485,-1818.81271393,0.00018462,2]
[359758529,1746305433495,-1818.81271393,0.00018462,2]
[359758530,1746305433504,-1818.81271393,0.00018462,2]
[359758531,1746305433514,-1818.81271393,0.00018462,2]
[359758532,1746305433524,-1818.81271393,0.00018462,2]
[359758533,1746305433533,-1818.81271393,0.00018462,2]
[359758534,1746305433543,-1818.81271393,0.00018462,2]
[359758535,1746305433552,-1818.81271393,0.00018462,2]
[359758536,1746305433562,-1818.81271393,0.00018462,2]
[359758537,1746305433572,-1818.81271393,0.00018462,2]
[359758538,1746305433581,-1818.81271393,0.00018462,2]
[359758539,1746305433591,-1818.81271393,0.00018462,2]
[359758540,1746305433600,-1818.81271393,0.00018462,2]
[359758541,1746305433610,-1818.81271393,0.00018462,2]
[359758542,1746305433620,-1818.81271393,0.00018462,2]
[359758543,1746305433630,-1818.81271393,0.00018462,2]
[359758544,1746305433639,-1818.81271393,0.00018462,2]
[359758545,1746305433649,-1818.81271393,0.00018462,2]
[359758546,1746305433658,-1818.81271391,0.00018462,2]
[359758547,1746305433667,-1818.81271391,0.00018462,2]
[359758548,1746305433677,-1818.8127139,0.00018462,2]
[359758549,1746305433686,-476.0,0.00018462,2]
[359758550,1746305433696,-400.0,0.00018462,2]
[359758551,1746305433705,-400.0,0.00018462,2]
[359758552,1746305433715,-400.0,0.00018462,2]
[359758553,1746305433725,-488.09893501,0.00018463,7]
[359758554,1746305433734,-400.0,0.00018463,2]
[359758555,1746305433744,-416.12,0.00018464,2]
[359758556,1746305433754,-400.0,0.00018465,2]
[359758557,1746305433763,-400.0,0.00018465,2]
[359758558,1746305433773,-400.0,0.00018465,2]
[359758559,1746305433782,-400.0,0.00018465,2]
[359758560,1746305433792,-253.12804318,0.00018465,2]
[359758561,1746305433802,-400.0,0.00018465,2]
[359758562,1746305433811,-400.0,0.00018465,2]
[359758563,1746305433820,-400.0,0.00018465,2]
[359758564,1746305433830,-400.0,0.00018465,2]
[359758565,1746305433839,-400.0,0.00018465,2]
[359758566,1746305433849,-400.0,0.00018465,2]
[359758567,1746305433858,-400.0,0.00018465,2]
[359758568,1746305433867,-400.0,0.00018465,2]
[359758569,1746305433877,-445.6,0.00018465,2]
[359758570,1746305433887,-400.0,0.00018465,2]
[359758571,1746305433897,-400.0,0.00018466,2]
[359758572,1746305433907,-400.0,0.00018466,2]
[359758573,1746305433916,-400.0,0.00018466,2]
[359758574,1746305433926,-400.0,0.00018466,2]
[359758575,1746305433936,-400.0,0.00018466,2]
[359758576,1746305433946,-400.0,0.00018466,2]
[359758577,1746305433955,-272.44455082,0.00018466,2]
[359758578,1746305433966,-400.0,0.00018466,2]
[359758579,1746305433975,-400.0,0.00018466,2]
[359758580,1746305433985,-400.0,0.00018466,2]
[359758581,1746305433994,-400.0,0.00018466,2]
[359758582,1746305434004,-400.0,0.00018466,2]
[359758583,1746305434013,-400.0,0.00018466,2]
[359758584,1746305434026,-400.0,0.00018466,2]
[359758585,1746305434036,-400.0,0.00018466,2]
[359758586,1746305434045,-400.0,0.00018466,2]
[359758587,1746305434055,-281.94,0.00018466,2]
[359758588,1746305434064,-763.14,0.00018466,2]
[359758589,1746305434074,-400.0,0.00018466,2]
[359758590,1746305434083,-400.0,0.00018466,2]
[359758591,1746305434093,-421.067783,0.00018467,2]
[359758592,1746305434103,-421.067783,0.00018467,2]
[359758593,1746305434113,-421.067783,0.00018467,2]
[359758594,1746305434122,-151.0,0.00018467,2]
[359758595,1746305434132,-151.0,0.00018467,2]
[359758596,1746305434141,-151.0,0.00018467,2]
[359758597,1746305434150,-151.0,0.00018467,2]
[359758598,1746305434160,-151.0,0.00018467,2]
[359758599,1746305434169,-164.070274,0.00018467,2]
[359758600,1746305434179,-421.067783,0.00018469,2]
[359758601,1746305434187,-400.0,0.0001847,2]
[359758602,1746305434197,-400.0,0.0001847,2]
[359758603,1746305434206,-400.0,0.0001847,2]
[359758604,1746305434215,-400.0,0.0001847,2]
[359758605,1746305434225,-400.0,0.0001847,2]
[359758606,1746305434234,-400.0,0.0001847,2]
[359758607,1746305434244,-400.0,0.0001847,2]
[359758608,1746305434253,-400.0,0.0001847,2]
[359758609,1746305434262,-919.49,0.0001847,2]
[359758610,1746305434272,-400.0,0.0001847,2]
[359758611,1746305434281,-400.0,0.0001847,2]
[359758612,1746305434291,-494.89,0.0001847,2]
[359758613,1746305434300,-400.0,0.0001847,2]
[359758614,1746305434310,-400.0,0.0001847,2]
[359758615,1746305434320,-400.0,0.0001847,2]
[359758616,1746305434332,-500.0,0.0001847,2]
[359758617,1746305434342,-152.0,0.00018471,2]
[359758618,1746305434352,-1603.33311556,0.00018502,2]
[359758619,1746305434362,-500.0,0.0001863,2]
[359758620,1746305434373,-1603.33311556,0.00018641,2]
[359758621,1746305434383,-400.0,0.00018736,2]
[359758622,1746305434393,-400.0,0.00018736,2]
[359758623,1746305434402,-476.0,0.00018736,2]
[359758624,1746305434412,-400.0,0.00018736,2]
[359758625,1746305434421,-353.88022382,0.00018736,2]
[359758626,1746305434432,-400.0,0.00018736,2]
[359758627,1746305434441,-400.0,0.00018737,2]
[359758628,1746305434451,-416.12,0.00018738,2]
[359758629,1746305434460,-400.0,0.00018739,2]
[359758630,1746305434471,-400.0,0.00018739,2]
[359758631,1746305434480,-400.0,0.00018739,2]
[359758632,1746305434490,-400.0,0.00018739,2]
[359758633,1746305434500,-400.0,0.00018739,2]
[359758634,1746305434510,-400.0,0.00018739,2]
[359758635,1746305434519,-400.0,0.00018739,2]
[359758636,1746305434529,-400.0,0.00018739,2]
[359758637,1746305434538,-400.0,0.00018739,2]
[359758638,1746305434548,-400.0,0.00018739,2]
[359758639,1746305434557,-445.6,0.00018739,2]
[359758640,1746305434567,-400.0,0.00018739,2]
[359758641,1746305434576,-400.0,0.0001874,2]
[359758642,1746305434586,-400.0,0.0001874,2]
[359758643,1746305434596,-400.0,0.0001874,2]
[359758644,1746305434606,-400.0,0.0001874,2]
[359758645,1746305434616,-400.0,0.0001874,2]
[359758646,1746305434626,-400.0,0.0001874,2]
[359758647,1746305434635,-151.0,0.0001874,2]
[359758648,1746305434645,-400.0,0.0001874,2]
[359758649,1746305434655,-400.0,0.0001874,2]
[359758650,1746305434665,-400.0,0.0001874,2]
[359758651,1746305434675,-400.0,0.0001874,2]
[359758652,1746305434685,-183.85,0.0001874,2]
[359758653,1746305434694,-543.73960878,0.0001874,2]
[359758654,1746305434704,-400.0,0.0001874,2]
[359758655,1746305434714,-400.0,0.0001874,2]
[359758656,1746305434724,-400.0,0.0001874,2]
[359758657,1746305434734,-763.14,0.0001874,2]
[359758658,1746305434744,-400.0,0.0001874,2]
[359758659,1746305434754,-400.0,0.0001874,2]
[359758660,1746305434763,-421.067783,0.00018743,2]
[359758661,1746305434773,-400.0,0.00018744,2]
[359758662,1746305434782,-549.74,0.00018744,2]
[359758663,1746305434792,-400.0,0.00018744,2]
[359758664,1746305434801,-400.0,0.00018744,2]
[359758665,1746305434810,-400.0,0.00018744,2]
[359758666,1746305434820,-400.0,0.00018744,2]
[359758667,1746305434829,-400.0,0.00018744,2]
[359758668,1746305434838,-400.0,0.00018744,2]
[359758669,1746305434848,-919.49,0.00018744,2]
[359758670,1746305434858,-400.0,0.00018744,2]
[359758671,1746305434868,-400.0,0.00018744,2]
[359758672,1746305434878,-494.89,0.00018744,2]
[359758673,1746305434887,-400.0,0.00018744,2]
[359758674,1746305434897,-400.0,0.00018744,2]
[359758675,1746305434906,-400.0,0.00018744,2]
[359758676,1746305434915,-500.0,0.00018744,2]
[359758677,1746305434926,-1603.33311556,0.00018779,2]
[359758678,1746305434935,-26574.93490523,0.00018816,2]
[359758679,1746305434950,-4562.80786254,0.00018816,2]
[359758685,1746305438452,-400.0,0.00018463,2]
[359758686,1746305438462,-400.0,0.00018466,2]
[359758687,1746305438482,-400.0,0.00018737,2]
[359758688,1746305438492,-65468.87579285,0.00018816,2]
[359758689,1746305438502,-421.067783,0.00018816,2]
[359758690,1746305438512,-151.0,0.00018816,2]
[359758691,1746305438522,-533.64587782,0.00018819,2]
[359758692,1746305438532,-509.86837102,0.00018873,2]
[359758693,1746305438542,-500.0,0.00018873,2]
[359758694,1746305438552,-500.0,0.00018873,2]
[359758695,1746305438562,-500.0,0.00018873,2]
[359758696,1746305438572,-629.46343363,0.00018873,2]
[359758697,1746305438582,-500.0,0.00018873,2]
[359758698,1746305438592,-500.0,0.00018873,2]
[359758699,1746305438602,-500.0,0.00018873,2]
[359758700,1746305438612,-501.65508662,0.00018873,2]
[359758701,1746305438622,-500.0,0.00018873,2]
[359758702,1746305438633,-500.0,0.00018873,2]
[359758703,1746305438642,-500.0,0.00018873,2]
[359758704,1746305438651,-500.0,0.00018873,2]
[359758705,1746305438660,-503.24351758,0.00018873,2]
[359758706,1746305438670,-500.0,0.00018873,2]
[359758707,1746305438679,-500.0,0.00018873,2]
[359758708,1746305438689,-500.0,0.00018873,2]
[359758709,1746305438698,-500.0,0.00018873,2]
[359758710,1746305438708,-627.92153836,0.00018873,2]
[359758711,1746305438719,-500.0,0.00018873,2]
[359758712,1746305438730,-500.0,0.00018873,2]
[359758713,1746305438741,-500.0,0.00018873,2]
[359758714,1746305438751,-193.0,0.00018887,2]
[359758715,1746305438761,-998.90534028,0.000189,2]
[359758716,1746305438770,-1603.33311556,0.00018918,2]
[359758717,1746305438780,-533.64587782,0.0001899,2]
[359758718,1746305438794,-2091.37010672,0.00019,2]
[359758719,1746305438805,-400.0,0.0001901,2]
[359758720,1746305438814,-400.0,0.0001901,2]
[359758721,1746305438824,-476.0,0.0001901,2]
[359758722,1746305438833,-400.0,0.0001901,2]
[359758723,1746305438842,-400.0,0.0001901,2]
[359758724,1746305438851,-400.0,0.00019011,2]
[359758725,1746305438860,-400.0,0.00019011,2]
[359758726,1746305438870,-416.12,0.00019012,2]
[359758727,1746305438880,-400.0,0.00019013,2]
[359758728,1746305439029,-400.0,0.00019013,2]
[359758729,1746305439040,-400.0,0.00019013,2]
[359758730,1746305439049,-400.0,0.00019013,2]
[359758731,1746305439059,-400.0,0.00019013,2]
[359758732,1746305439070,-400.0,0.00019013,2]
[359758733,1746305439079,-400.0,0.00019013,2]
[359758734,1746305439089,-400.0,0.00019013,2]
[359758735,1746305439098,-400.0,0.00019013,2]
[359758736,1746305439107,-445.6,0.00019013,2]
[359758737,1746305439117,-400.0,0.00019013,2]
[359758738,1746305439126,-400.0,0.00019014,2]
[359758739,1746305439135,-400.0,0.00019014,2]
[359758740,1746305439144,-400.0,0.00019014,2]
[359758741,1746305439153,-400.0,0.00019014,2]
[359758742,1746305439162,-400.0,0.00019014,2]
[359758743,1746305439171,-400.0,0.00019014,2]
[359758744,1746305439181,-400.0,0.00019014,2]
[359758745,1746305439190,-400.0,0.00019014,2]
[359758746,1746305439199,-400.0,0.00019014,2]
[359758747,1746305439208,-400.0,0.00019014,2]
[359758748,1746305439217,-400.0,0.00019014,2]
[359758749,1746305439226,-400.0,0.00019014,2]
[359758750,1746305439235,-400.0,0.00019014,2]
[359758751,1746305439244,-763.14,0.00019014,2]
[359758752,1746305439255,-400.0,0.00019014,2]
[359758753,1746305439264,-400.0,0.00019014,2]
[359758754,1746305439273,-400.0,0.00019018,2]
[359758755,1746305439282,-400.0,0.00019018,2]
[359758756,1746305439292,-400.0,0.00019018,2]
[359758757,1746305439301,-400.0,0.00019018,2]
[359758758,1746305439310,-400.0,0.00019018,2]
[359758759,1746305439319,-400.0,0.00019018,2]
[359758760,1746305439328,-919.49,0.00019018,2]
[359758761,1746305439338,-377.69589179,0.00019018,2]
[359758762,1746305439347,-151.0,0.00019018,2]
[359758763,1746305439356,-400.0,0.00019018,2]
[359758764,1746305439366,-494.89,0.00019018,2]
[359758765,1746305439375,-400.0,0.00019018,2]
[359758766,1746305439384,-400.0,0.00019018,2]
[359758767,1746305439394,-400.0,0.00019018,2]
[359758768,1746305439403,-421.067783,0.00019019,2]
[359758769,1746305439412,-500.0,0.00019178,2]
[359758770,1746305439421,-500.0,0.00019178,2]
[359758771,1746305439430,-151.0,0.00019178,2]
[359758772,1746305439439,-204.73972,0.00019178,2]